Workbook

Sheet Approx
D1: Approximating the Sine Function
B3: This program lets you "build" the best
D4: polynomial approximation to y = ex
D7: based on the numbers a, b, c, …, f.
D9: Start by setting all the coefficients to 0
D10: and then adjust each coefficient in turn
D11: to get the best possible fit to the exponential curve.
D12: We start with the constant coefficient a = 1.
B14: First adjust b (0 to 10) in the linear coefficient 1/b.
E15: =F15 -> 3 | F15: 3
B16: Next adjust c (0 to 10) in the quadratic coefficient 1/c.
E17: =F17 -> 3 | F17: 3 | L17: =" y = "&Sheet3!G13 & Sheet3!G15 & Sheet3!G17 & Sheet3!G19 & Sheet3!G21 & Sheet3!G23 -> y = 1 + (1/3)x + (1/3)x^2 + (1/10)x^3+ (1/15)x^4+ (1/75)x^5
B18: Then adjust d (0 to 20) in the cubic coefficient 1/d.
E19: =F19 -> 10 | F19: 10
B20: Then adjust e (0 to 40) in the quartic coefficient 1/e | M20: Enter an interval from -c to +c
E21: =F21 -> 15 | F21: 15
B22: Finally adjust f (0 to 240) in the fifth degree coefficient 1/f | M22: =-P22 -> -2.1 | N22: to | O22: =P22 -> 2.1 | P22: =0.1+$Q22/10 -> 2.1 | Q22: 20
E23: =5*F23 -> 75 | F23: 15
M24: The sum of the squares = | P24: =Sheet3!G27 -> 204.6690285
C29: Click each item below for suggestions and investigations
D30: Item 1
D31: Item 2
D32: Item 3
D33: Item 4
D34: Item 5
D35: Item 6
D36: Item 7
A39: Created by: Sheldon P. Gordon
A40: Farmingdale StateCollege
A41: Development of this module was supported by the
A42: NSF's Division of Undergraduate Education
A43: under grants DUE-0310123 and DUE-0442160.

Sheet Sheet3
D1: Sum of Squares
A2: =xMin -> -2.1 | B2: =EXP(A2) -> 0.1224564283 | C2: =1+H$3*A2+H$4*A2^2+H$5*A2^3+H$6*A2^4+H$7*A2^5+H$8*A2^6 -> 1.5958932 | D2: =IF(A2<Approx!M$22,0,(B2-C2)^2) -> 2.17101592 | E2: 0 | F2: 1 | H2: coefficients
A3: =A2+(xMax-xMin)/200 -> -2.079 | B3: =EXP(A3) -> 0.1250552049 | C3: =1+H$3*A3+H$4*A3^2+H$5*A3^3+H$6*A3^4+H$7*A3^5+H$8*A3^6 -> 1.576745658 | D3: =IF(A3<Approx!M$22,0,(B3-C3)^2) -> 2.107405173 | H3: =IF(Approx!E15=0,0,1/Approx!E15) -> 0.3333333333
A4: -2.058 | B4: 0.1277091329 | C4: 1.557810126 | D4: =IF(A4<Approx!M$22,0,(B4-C4)^2) -> 2.045188849 | E4: -3 | F4: =a -> 0 | H4: =IF(Approx!E17=0,0,1/Approx!E17) -> 0.3333333333
A5: -2.037 | B5: 0.1304193827 | C5: 1.539093209 | D5: =IF(A5<Approx!M$22,0,(B5-C5)^2) -> 1.984361948 | E5: 3 | F5: =a -> 0 | H5: =IF(Approx!E19=0,0,1/Approx!E19) -> 0.1
A6: -2.016 | B6: 0.1331871496 | C6: 1.520601186 | D6: =IF(A6<Approx!M$22,0,(B6-C6)^2) -> 1.924917708 | H6: =IF(Approx!E21=0,0,1/Approx!E21) -> 0.06666666667
A7: -1.995 | B7: 0.1360136542 | C7: 1.502340012 | D7: =IF(A7<Approx!M$22,0,(B7-C7)^2) -> 1.866847717 | H7: =IF(Approx!E23=0,0,1/Approx!E23) -> 0.01333333333
A8: -1.974 | B8: 0.138900143 | C8: 1.484315327 | D8: =IF(A8<Approx!M$22,0,(B8-C8)^2) -> 1.810142018 | H8: =IF(Approx!E25=0,0,1/Approx!E25) -> 0
A9: -1.953 | B9: 0.141847889 | C9: 1.46653246 | D9: =IF(A9<Approx!M$22,0,(B9-C9)^2) -> 1.754789213
A10: -1.932 | B10: 0.1448581922 | C10: 1.448996437 | D10: =IF(A10<Approx!M$22,0,(B10-C10)^2) -> 1.700776562
A11: -1.911 | B11: 0.1479323802 | C11: 1.431711989 | D11: =IF(A11<Approx!M$22,0,(B11-C11)^2) -> 1.648090083
A12: -1.89 | B12: 0.1510718088 | C12: 1.414683554 | D12: =IF(A12<Approx!M$22,0,(B12-C12)^2) -> 1.596714643 | G12: Polynomial:
A13: -1.869 | B13: 0.1542778626 | C13: 1.39791529 | D13: =IF(A13<Approx!M$22,0,(B13-C13)^2) -> 1.546634051 | F13: linear | G13: =IF(Approx!E15>0,"1 + (1/" &TEXT(Approx!E15,"#") &")x ",IF(Approx!E15<0,"0 - (1/" &TEXT(-1*Approx!E15,"#") & ")x ","0 - 0x ")) -> 1 + (1/3)x
A14: -1.848 | B14: 0.1575519553 | C14: 1.381411076 | D14: =IF(A14<Approx!M$22,0,(B14-C14)^2) -> 1.497831148
A15: -1.827 | B15: 0.1608955311 | C15: 1.365174522 | D15: =IF(A15<Approx!M$22,0,(B15-C15)^2) -> 1.450287887 | F15: quad | G15: =IF(Approx!E17>0,"+ (1/"&TEXT(Approx!E17,"#")&")x^2",IF(Approx!E17<0," - (1/"&TEXT(-1*Approx!E17,"#")&")x^2 "," + 0x^2")) -> + (1/3)x^2
A16: -1.806 | B16: 0.1643100643 | C16: 1.349208971 | D16: =IF(A16<Approx!M$22,0,(B16-C16)^2) -> 1.403985419
A17: -1.785 | B17: 0.167797061 | C17: 1.333517513 | D17: =IF(A17<Approx!M$22,0,(B17-C17)^2) -> 1.358904172 | F17: cubic | G17: =IF(Approx!E19>0," + (1/"&TEXT(Approx!E19,"#") &")x^3", IF(Approx!E19<0," - (1/"&TEXT(-1*Approx!E19,"#")&")x^3 "," - 0x^3")) -> + (1/10)x^3
A18: -1.764 | B18: 0.1713580589 | C18: 1.318102984 | D18: =IF(A18<Approx!M$22,0,(B18-C18)^2) -> 1.315023923
A19: -1.743 | B19: 0.1749946285 | C19: 1.302967977 | D19: =IF(A19<Approx!M$22,0,(B19-C19)^2) -> 1.272323874 | F19: quartic | G19: =IF(Approx!E21>0,"+ (1/"&TEXT(Approx!E21,"#")&")x^4",IF(Approx!E21<0," - (1/"&TEXT(-1*Approx!E21,"#")&")x^4 ", " + 0x^4 ")) -> + (1/15)x^4
A20: -1.722 | B20: 0.1787083735 | C20: 1.288114847 | D20: =IF(A20<Approx!M$22,0,(B20-C20)^2) -> 1.230782723
A21: -1.701 | B21: 0.1825009318 | C21: 1.273545718 | D21: =IF(A21<Approx!M$22,0,(B21-C21)^2) -> 1.190378724 | F21: quintic | G21: =IF(Approx!E23>0,"+ (1/"&TEXT(Approx!E23,"#") &")x^5",IF(Approx!E23<0," - (1/"&TEXT(-1*Approx!E23,"#")&")x^5 "," + 0x^5")) -> + (1/75)x^5
A22: -1.68 | B22: 0.186373976 | C22: 1.259262489 | D22: =IF(A22<Approx!M$22,0,(B22-C22)^2) -> 1.15108976
A23: -1.659 | B23: 0.1903292142 | C23: 1.245266841 | D23: =IF(A23<Approx!M$22,0,(B23-C23)^2) -> 1.112893396
A24: -1.638 | B24: 0.1943683906 | C24: 1.231560244 | D24: =IF(A24<Approx!M$22,0,(B24-C24)^2) -> 1.07576694
A25: -1.617 | B25: 0.1984932866 | C25: 1.218143961 | D25: =IF(A25<Approx!M$22,0,(B25-C25)^2) -> 1.039687499
A26: -1.596 | B26: 0.2027057214 | C26: 1.20501906 | D26: =IF(A26<Approx!M$22,0,(B26-C26)^2) -> 1.004632029 | F26: sum of squares =
A27: -1.575 | B27: 0.2070075527 | C27: 1.192186414 | D27: =IF(A27<Approx!M$22,0,(B27-C27)^2) -> 0.9705773881 | G27: =SUM(D2:D203) -> 204.6690285
A28: -1.554 | B28: 0.2114006777 | C28: 1.17964671 | D28: =IF(A28<Approx!M$22,0,(B28-C28)^2) -> 0.93750038
A29: -1.533 | B29: 0.2158870338 | C29: 1.16740046 | D29: =IF(A29<Approx!M$22,0,(B29-C29)^2) -> 0.9053778002
A30: -1.512 | B30: 0.2204685995 | C30: 1.155447999 | D30: =IF(A30<Approx!M$22,0,(B30-C30)^2) -> 0.874186478
A31: -1.491 | B31: 0.2251473955 | C31: 1.1437895 | D31: =IF(A31<Approx!M$22,0,(B31-C31)^2) -> 0.8439033157
A32: -1.47 | B32: 0.2299254852 | C32: 1.132424973 | D32: =IF(A32<Approx!M$22,0,(B32-C32)^2) -> 0.8145053261
A33: -1.449 | B33: 0.2348049757 | C33: 1.121354279 | D33: =IF(A33<Approx!M$22,0,(B33-C33)^2) -> 0.7859696673
A34: -1.428 | B34: 0.239788019 | C34: 1.11057713 | D34: =IF(A34<Approx!M$22,0,(B34-C34)^2) -> 0.7582736758
A35: =A34+(xMax-xMin)/200 -> -1.407 | B35: 0.2448768127 | C35: 1.100093099 | D35: =IF(A35<Approx!M$22,0,(B35-C35)^2) -> 0.7313948967
A36: -1.386 | B36: 0.2500736011 | C36: 1.089901627 | D36: =IF(A36<Approx!M$22,0,(B36-C36)^2) -> 0.7053111128
A37: -1.365 | B37: 0.255380676 | C37: 1.080002026 | D37: =IF(A37<Approx!M$22,0,(B37-C37)^2) -> 0.6800003712
A38: -1.344 | B38: 0.2608003779 | C38: 1.07039349 | D38: =IF(A38<Approx!M$22,0,(B38-C38)^2) -> 0.655441008
A39: -1.323 | B39: 0.266335097 | C39: 1.061075099 | D39: =IF(A39<Approx!M$22,0,(B39-C39)^2) -> 0.6316116716
A40: -1.302 | B40: 0.2719872741 | C40: 1.052045826 | D40: =IF(A40<Approx!M$22,0,(B40-C40)^2) -> 0.608491344
A41: -1.281 | B41: 0.2777594021 | C41: 1.043304542 | D41: =IF(A41<Approx!M$22,0,(B41-C41)^2) -> 0.5860593604
A42: -1.26 | B42: 0.2836540265 | C42: 1.034850025 | D42: =IF(A42<Approx!M$22,0,(B42-C42)^2) -> 0.5642954279
A43: -1.239 | B43: 0.2896737469 | C43: 1.026680966 | D43: =IF(A43<Approx!M$22,0,(B43-C43)^2) -> 0.5431796417
A44: -1.218 | B44: 0.2958212181 | C44: 1.018795976 | D44: =IF(A44<Approx!M$22,0,(B44-C44)^2) -> 0.5226925009
A45: -1.197 | B45: 0.3020991513 | C45: 1.01119359 | D45: =IF(A45<Approx!M$22,0,(B45-C45)^2) -> 0.5028149225
A46: -1.176 | B46: 0.3085103151 | C46: 1.003872274 | D46: =IF(A46<Approx!M$22,0,(B46-C46)^2) -> 0.4835282542
A47: -1.155 | B47: 0.3150575369 | C47: 0.9968304363 | D47: =IF(A47<Approx!M$22,0,(B47-C47)^2) -> 0.4648142863
A48: -1.134 | B48: 0.3217437042 | C48: 0.9900664274 | D48: =IF(A48<Approx!M$22,0,(B48-C48)^2) -> 0.4466552623
A49: -1.113 | B49: 0.3285717657 | C49: 0.9835785509 | D49: =IF(A49<Approx!M$22,0,(B49-C49)^2) -> 0.4290338886
A50: -1.092 | B50: 0.3355447327 | C50: 0.9773650684 | D50: =IF(A50<Approx!M$22,0,(B50-C50)^2) -> 0.4119333433
A51: -1.071 | B51: 0.3426656803 | C51: 0.9714242063 | D51: =IF(A51<Approx!M$22,0,(B51-C51)^2) -> 0.395337284
A52: -1.05 | B52: 0.3499377491 | C52: 0.9657541625 | D52: =IF(A52<Approx!M$22,0,(B52-C52)^2) -> 0.379229855
A53: -1.029 | B53: 0.3573641461 | C53: 0.9603531127 | D53: =IF(A53<Approx!M$22,0,(B53-C53)^2) -> 0.3635956938
A54: -1.008 | B54: 0.3649481465 | C54: 0.9552192171 | D54: =IF(A54<Approx!M$22,0,(B54-C54)^2) -> 0.3484199368
A55: -0.987 | B55: 0.3726930949 | C55: 0.9503506268 | D55: =IF(A55<Approx!M$22,0,(B55-C55)^2) -> 0.3336882242
A56: -0.966 | B56: 0.380602407 | C56: 0.9457454905 | D56: =IF(A56<Approx!M$22,0,(B56-C56)^2) -> 0.3193867048
A57: -0.945 | B57: 0.3886795709 | C57: 0.9414019609 | D57: =IF(A57<Approx!M$22,0,(B57-C57)^2) -> 0.3055020404
A58: -0.924 | B58: 0.3969281488 | C58: 0.9373182013 | D58: =IF(A58<Approx!M$22,0,(B58-C58)^2) -> 0.2920214088
A59: -0.903 | B59: 0.4053517785 | C59: 0.9334923921 | D59: =IF(A59<Approx!M$22,0,(B59-C59)^2) -> 0.2789325077
A60: -0.882 | B60: 0.4139541749 | C60: 0.9299227373 | D60: =IF(A60<Approx!M$22,0,(B60-C60)^2) -> 0.2662235574
A61: -0.861 | B61: 0.4227391317 | C61: 0.9266074712 | D61: =IF(A61<Approx!M$22,0,(B61-C61)^2) -> 0.2538833035
A62: -0.84 | B62: 0.4317105234 | C62: 0.9235448648 | D62: =IF(A62<Approx!M$22,0,(B62-C62)^2) -> 0.2419010193
A63: -0.819 | B63: 0.4408723064 | C63: 0.9207332322 | D63: =IF(A63<Approx!M$22,0,(B63-C63)^2) -> 0.230266508
A64: -0.798 | B64: 0.4502285213 | C64: 0.9181709374 | D64: =IF(A64<Approx!M$22,0,(B64-C64)^2) -> 0.2189701048
A65: -0.777 | B65: 0.4597832942 | C65: 0.9158564007 | D65: =IF(A65<Approx!M$22,0,(B65-C65)^2) -> 0.2080026785
A66: -0.756 | B66: 0.469540839 | C66: 0.9137881054 | D66: =IF(A66<Approx!M$22,0,(B66-C66)^2) -> 0.1973556337
A67: =A66+(xMax-xMin)/200 -> -0.735 | B67: =EXP(A67) -> 0.479505459 | C67: =1+H$3*A67+H$4*A67^2+H$5*A67^3+H$6*A67^4+H$7*A67^5+H$8*A67^6 -> 0.911964604 | D67: =IF(A67<Approx!M$22,0,(B67-C67)^2) -> 0.1870209121
A68: -0.714 | B68: 0.4896815486 | C68: 0.9103845249 | D68: =IF(A68<Approx!M$22,0,(B68-C68)^2) -> 0.1769909943
A69: -0.693 | B69: 0.5000735957 | C69: 0.9090465791 | D69: =IF(A69<Approx!M$22,0,(B69-C69)^2) -> 0.1672589012
A70: -0.672 | B70: 0.5106861834 | C70: 0.9079495666 | D70: =IF(A70<Approx!M$22,0,(B70-C70)^2) -> 0.1578181957
A71: -0.651 | B71: 0.5215239919 | C71: 0.9070923828 | D71: =IF(A71<Approx!M$22,0,(B71-C71)^2) -> 0.1486629841
A72: -0.63 | B72: 0.532591801 | C72: 0.9064740253 | D72: =IF(A72<Approx!M$22,0,(B72-C72)^2) -> 0.1397879176
A73: -0.609 | B73: 0.5438944917 | C73: 0.9060936001 | D73: =IF(A73<Approx!M$22,0,(B73-C73)^2) -> 0.1311881941
A74: -0.588 | B74: 0.5554370487 | C74: 0.9059503286 | D74: =IF(A74<Approx!M$22,0,(B74-C74)^2) -> 0.1228595594
A75: -0.567 | B75: 0.5672245624 | C75: 0.9060435537 | D75: =IF(A75<Approx!M$22,0,(B75-C75)^2) -> 0.1147983088
A76: -0.546 | B76: 0.5792622314 | C76: 0.9063727465 | D76: =IF(A76<Approx!M$22,0,(B76-C76)^2) -> 0.1070012891
A77: -0.525 | B77: 0.5915553644 | C77: 0.9069375129 | D77: =IF(A77<Approx!M$22,0,(B77-C77)^2) -> 0.09946589961
A78: -0.504 | B78: 0.6041093829 | C78: 0.9077376 | D78: =IF(A78<Approx!M$22,0,(B78-C78)^2) -> 0.09219009425
A79: -0.483 | B79: 0.6169298234 | C79: 0.9087729028 | D79: =IF(A79<Approx!M$22,0,(B79-C79)^2) -> 0.08517238301
A80: -0.462 | B80: 0.6300223399 | C80: 0.9100434706 | D80: =IF(A80<Approx!M$22,0,(B80-C80)^2) -> 0.07841183359
A81: -0.441 | B81: 0.6433927066 | C81: 0.9115495134 | D81: =IF(A81<Approx!M$22,0,(B81-C81)^2) -> 0.07190807307
A82: -0.42 | B82: 0.6570468198 | C82: 0.913291409 | D82: =IF(A82<Approx!M$22,0,(B82-C82)^2) -> 0.0656612895
A83: -0.399 | B83: 0.6709907014 | C83: 0.9152697088 | D83: =IF(A83<Approx!M$22,0,(B83-C83)^2) -> 0.05967223349
A84: -0.378 | B84: 0.6852305007 | C84: 0.9174851448 | D84: =IF(A84<Approx!M$22,0,(B84-C84)^2) -> 0.05394221973
A85: -0.357 | B85: 0.6997724977 | C85: 0.919938636 | D85: =IF(A85<Approx!M$22,0,(B85-C85)^2) -> 0.04847312845
A86: -0.336 | B86: 0.7146231058 | C86: 0.922631295 | D86: =IF(A86<Approx!M$22,0,(B86-C86)^2) -> 0.04326740676
A87: -0.315 | B87: 0.7297888743 | C87: 0.9255644344 | D87: =IF(A87<Approx!M$22,0,(B87-C87)^2) -> 0.03832806993
A88: -0.294 | B88: 0.7452764914 | C88: 0.9287395734 | D88: =IF(A88<Approx!M$22,0,(B88-C88)^2) -> 0.03365870243
A89: -0.273 | B89: 0.7610927876 | C89: 0.9321584444 | D89: =IF(A89<Approx!M$22,0,(B89-C89)^2) -> 0.02926345894
A90: -0.252 | B90: 0.7772447381 | C90: 0.9358229997 | D90: =IF(A90<Approx!M$22,0,(B90-C90)^2) -> 0.02514706505
A91: -0.231 | B91: 0.793739466 | C91: 0.9397354173 | D91: =IF(A91<Approx!M$22,0,(B91-C91)^2) -> 0.0213148178
A92: -0.21 | B92: 0.810584246 | C92: 0.9438981085 | D92: =IF(A92<Approx!M$22,0,(B92-C92)^2) -> 0.01777258595
A93: -0.189 | B93: 0.8277865067 | C93: 0.9483137236 | D93: =IF(A93<Approx!M$22,0,(B93-C93)^2) -> 0.01452681001
A94: -0.168 | B94: 0.8453538347 | C94: 0.9529851587 | D94: =IF(A94<Approx!M$22,0,(B94-C94)^2) -> 0.01158450191
A95: -0.147 | B95: 0.8632939774 | C95: 0.9579155624 | D95: =IF(A95<Approx!M$22,0,(B95-C95)^2) -> 0.008953244346
A96: -0.126 | B96: 0.8816148468 | C96: 0.9631083421 | D96: =IF(A96<Approx!M$22,0,(B96-C96)^2) -> 0.006641189782
A97: -0.105 | B97: 0.9003245226 | C97: 0.9685671707 | D97: =IF(A97<Approx!M$22,0,(B97-C97)^2) -> 0.004657059022
A98: -0.084 | B98: 0.9194312561 | C98: 0.974295993 | D98: =IF(A98<Approx!M$22,0,(B98-C98)^2) -> 0.003010139354
A99: =A98+(xMax-xMin)/200 -> -0.063 | B99: 0.9389434737 | C99: 0.9802990323 | D99: =IF(A99<Approx!M$22,0,(B99-C99)^2) -> 0.001710282225
A100: -0.042 | B100: 0.9588697806 | C100: 0.9865807969 | D100: =IF(A100<Approx!M$22,0,(B100-C100)^2) -> 0.0007679004261
A101: -0.021 | B101: 0.9792189646 | C101: 0.9931460868 | D101: =IF(A101<Approx!M$22,0,(B101-C101)^2) -> 0.0001939647339
A102: -4.253541963e-15 | B102: 1 | C102: 1 | D102: =IF(A102<Approx!M$22,0,(B102-C102)^2) -> 7.703719778e-30
A103: 0.021 | B103: 1.021222052 | C103: 1.007147939 | D103: =(B103-C103)^2 -> 0.0001980806432
A104: 0.042 | B104: 1.042894479 | C104: 1.014595618 | D104: =IF(A104>Approx!O$22,0,(B104-C104)^2) -> 0.0008008255204
A105: 0.063 | B105: 1.065026839 | C105: 1.022349068 | D105: =IF(A105>Approx!O$22,0,(B105-C105)^2) -> 0.001821392146
A106: 0.084 | B106: 1.087628894 | C106: 1.030414645 | D106: =IF(A106>Approx!O$22,0,(B106-C106)^2) -> 0.003273470232
A107: 0.105 | B107: 1.11071061 | C107: 1.038799036 | D107: =IF(A107>Approx!O$22,0,(B107-C107)^2) -> 0.00517127452
A108: 0.126 | B108: 1.134282168 | C108: 1.047509264 | D108: =IF(A108>Approx!O$22,0,(B108-C108)^2) -> 0.007529536883
A109: 0.147 | B109: 1.158353963 | C109: 1.056552697 | D109: =IF(A109>Approx!O$22,0,(B109-C109)^2) -> 0.01036349767
A110: 0.168 | B110: 1.182936611 | C110: 1.065937054 | D110: =IF(A110>Approx!O$22,0,(B110-C110)^2) -> 0.01368889629
A111: 0.189 | B111: 1.208040952 | C111: 1.075670408 | D111: =IF(A111>Approx!O$22,0,(B111-C111)^2) -> 0.01752196095
A112: 0.21 | B112: 1.23367806 | C112: 1.085761199 | D112: =IF(A112>Approx!O$22,0,(B112-C112)^2) -> 0.02187939762
A113: 0.231 | B113: 1.259859239 | C113: 1.096218236 | D113: =IF(A113>Approx!O$22,0,(B113-C113)^2) -> 0.02677837817
A114: 0.252 | B114: 1.286596037 | C114: 1.107050701 | D114: =IF(A114>Approx!O$22,0,(B114-C114)^2) -> 0.03223652764
A115: 0.273 | B115: 1.313900245 | C115: 1.118268165 | D115: =IF(A115>Approx!O$22,0,(B115-C115)^2) -> 0.03827191061
A116: 0.294 | B116: 1.341783904 | C116: 1.129880584 | D116: =IF(A116>Approx!O$22,0,(B116-C116)^2) -> 0.04490301678
A117: 0.315 | B117: 1.370259311 | C117: 1.141898312 | D117: =IF(A117>Approx!O$22,0,(B117-C117)^2) -> 0.05214874566
A118: 0.336 | B118: 1.399339025 | C118: 1.154332106 | D118: =IF(A118>Approx!O$22,0,(B118-C118)^2) -> 0.0600283903
A119: 0.357 | B119: 1.42903587 | C119: 1.16719313 | D119: =IF(A119>Approx!O$22,0,(B119-C119)^2) -> 0.06856162024
A120: 0.378 | B120: 1.459362943 | C120: 1.180492967 | D120: =IF(A120>Approx!O$22,0,(B120-C120)^2) -> 0.07776846353
A121: 0.399 | B121: 1.490333619 | C121: 1.194243619 | D121: =IF(A121>Approx!O$22,0,(B121-C121)^2) -> 0.08766928788
A122: 0.42 | B122: 1.521961556 | C122: 1.208457519 | D122: =IF(A122>Approx!O$22,0,(B122-C122)^2) -> 0.09828478099
A123: 0.441 | B123: 1.554260702 | C123: 1.223147534 | D123: =IF(A123>Approx!O$22,0,(B123-C123)^2) -> 0.1096359299
A124: 0.462 | B124: 1.587245303 | C124: 1.238326975 | D124: =IF(A124>Approx!O$22,0,(B124-C124)^2) -> 0.1217439998
A125: 0.483 | B125: 1.620929905 | C125: 1.254009598 | D125: =IF(A125>Approx!O$22,0,(B125-C125)^2) -> 0.1346305116
A126: 0.504 | B126: 1.655329363 | C126: 1.270209617 | D126: =IF(A126>Approx!O$22,0,(B126-C126)^2) -> 0.1483172188
A127: 0.525 | B127: 1.690458848 | C127: 1.286941706 | D127: =IF(A127>Approx!O$22,0,(B127-C127)^2) -> 0.1628260843
A128: 0.546 | B128: 1.726333853 | C128: 1.304221007 | D128: =IF(A128>Approx!O$22,0,(B128-C128)^2) -> 0.1781792553
A129: 0.567 | B129: 1.7629702 | C129: 1.322063137 | D129: =IF(A129>Approx!O$22,0,(B129-C129)^2) -> 0.1943990382
A130: 0.588 | B130: 1.800384044 | C130: 1.340484193 | D130: =IF(A130>Approx!O$22,0,(B130-C130)^2) -> 0.2115078729
A131: =A130+(xMax-xMin)/200 -> 0.609 | B131: =EXP(A131) -> 1.838591887 | C131: =1+H$3*A131+H$4*A131^2+H$5*A131^3+H$6*A131^4+H$7*A131^5+H$8*A131^6 -> 1.359500762 | D131: =IF(A131>Approx!O$22,0,(B131-C131)^2) -> 0.2295283063
A132: 0.63 | B132: 1.877610579 | C132: 1.379129923 | D132: =IF(A132>Approx!O$22,0,(B132-C132)^2) -> 0.2484829649
A133: 0.651 | B133: 1.917457328 | C133: 1.399389256 | D133: =IF(A133>Approx!O$22,0,(B133-C133)^2) -> 0.2683945276
A134: 0.672 | B134: 1.958149706 | C134: 1.420296848 | D134: =IF(A134>Approx!O$22,0,(B134-C134)^2) -> 0.2892856973
A135: 0.693 | B135: 1.999705661 | C135: 1.441871301 | D135: =IF(A135>Approx!O$22,0,(B135-C135)^2) -> 0.3111791725
A136: 0.714 | B136: 2.042143517 | C136: 1.464131737 | D136: =IF(A136>Approx!O$22,0,(B136-C136)^2) -> 0.3340976186
A137: 0.735 | B137: 2.085481993 | C137: 1.487097803 | D137: =IF(A137>Approx!O$22,0,(B137-C137)^2) -> 0.3580636385
A138: 0.756 | B138: 2.129740199 | C138: 1.510789681 | D138: =IF(A138>Approx!O$22,0,(B138-C138)^2) -> 0.3830997436
A139: 0.777 | B139: 2.174937656 | C139: 1.535228093 | D139: =IF(A139>Approx!O$22,0,(B139-C139)^2) -> 0.409228324
A140: 0.798 | B140: 2.221094295 | C140: 1.560434307 | D140: =IF(A140>Approx!O$22,0,(B140-C140)^2) -> 0.4364716191
A141: 0.819 | B141: 2.268230473 | C141: 1.586430144 | D141: =IF(A141>Approx!O$22,0,(B141-C141)^2) -> 0.4648516884
A142: 0.84 | B142: 2.316366977 | C142: 1.613237983 | D142: =IF(A142>Approx!O$22,0,(B142-C142)^2) -> 0.4943903816
A143: 0.861 | B143: 2.365525036 | C143: 1.640880772 | D143: =IF(A143>Approx!O$22,0,(B143-C143)^2) -> 0.5251093097
A144: 0.882 | B144: 2.415726331 | C144: 1.669382029 | D144: =IF(A144>Approx!O$22,0,(B144-C144)^2) -> 0.5570298164
A145: 0.903 | B145: 2.466993 | C145: 1.698765853 | D145: =IF(A145>Approx!O$22,0,(B145-C145)^2) -> 0.5901729492
A146: 0.924 | B146: 2.519347653 | C146: 1.729056926 | D146: =IF(A146>Approx!O$22,0,(B146-C146)^2) -> 0.6245594318
A147: 0.945 | B147: 2.572813379 | C147: 1.760280526 | D147: =IF(A147>Approx!O$22,0,(B147-C147)^2) -> 0.6602096367
A148: 0.966 | B148: 2.627413757 | C148: 1.792462526 | D148: =IF(A148>Approx!O$22,0,(B148-C148)^2) -> 0.6971435588
A149: 0.987 | B149: 2.683172867 | C149: 1.825629405 | D149: =IF(A149>Approx!O$22,0,(B149-C149)^2) -> 0.7353807894
A150: 1.008 | B150: 2.740115301 | C150: 1.859808257 | D150: =IF(A150>Approx!O$22,0,(B150-C150)^2) -> 0.7749404917
A151: 1.029 | B151: 2.798266169 | C151: 1.895026789 | D151: =IF(A151>Approx!O$22,0,(B151-C151)^2) -> 0.8158413773
A152: 1.05 | B152: 2.857651118 | C152: 1.931313337 | D152: =IF(A152>Approx!O$22,0,(B152-C152)^2) -> 0.8581016837
A153: 1.071 | B153: 2.918296338 | C153: 1.968696868 | D153: =IF(A153>Approx!O$22,0,(B153-C153)^2) -> 0.9017391532
A154: 1.092 | B154: 2.980228573 | C154: 2.007206984 | D154: =IF(A154>Approx!O$22,0,(B154-C154)^2) -> 0.9467710135
A155: 1.113 | B155: 3.043475138 | C155: 2.046873934 | D155: =IF(A155>Approx!O$22,0,(B155-C155)^2) -> 0.99321396
A156: 1.134 | B156: 3.108063924 | C156: 2.087728617 | D156: =IF(A156>Approx!O$22,0,(B156-C156)^2) -> 1.041084139
A157: 1.155 | B157: 3.174023418 | C157: 2.12980259 | D157: =IF(A157>Approx!O$22,0,(B157-C157)^2) -> 1.090397136
A158: 1.176 | B158: 3.241382706 | C158: 2.173128075 | D158: =IF(A158>Approx!O$22,0,(B158-C158)^2) -> 1.141167958
A159: 1.197 | B159: 3.310171498 | C159: 2.217737961 | D159: =IF(A159>Approx!O$22,0,(B159-C159)^2) -> 1.193411032
A160: 1.218 | B160: 3.380420128 | C160: 2.263665818 | D160: =IF(A160>Approx!O$22,0,(B160-C160)^2) -> 1.247140188
A161: 1.239 | B161: 3.452159579 | C161: 2.310945898 | D161: =IF(A161>Approx!O$22,0,(B161-C161)^2) -> 1.302368664
A162: 1.26 | B162: 3.525421487 | C162: 2.359613143 | D162: =IF(A162>Approx!O$22,0,(B162-C162)^2) -> 1.359109095
A163: =A162+(xMax-xMin)/200 -> 1.281 | B163: 3.600238164 | C163: 2.409703192 | D163: =IF(A163>Approx!O$22,0,(B163-C163)^2) -> 1.417373519
A164: 1.302 | B164: 3.676642604 | C164: 2.461252388 | D164: =IF(A164>Approx!O$22,0,(B164-C164)^2) -> 1.477173379
A165: 1.323 | B165: 3.754668504 | C165: 2.514297782 | D165: =IF(A165>Approx!O$22,0,(B165-C165)^2) -> 1.538519528
A166: 1.344 | B166: 3.834350273 | C166: 2.568877142 | D166: =IF(A166>Approx!O$22,0,(B166-C166)^2) -> 1.601422244
A167: 1.365 | B167: 3.915723052 | C167: 2.625028961 | D167: =IF(A167>Approx!O$22,0,(B167-C167)^2) -> 1.665891238
A168: 1.386 | B168: 3.998822729 | C168: 2.682792457 | D168: =IF(A168>Approx!O$22,0,(B168-C168)^2) -> 1.731935675
A169: 1.407 | B169: 4.083685951 | C169: 2.742207589 | D169: =IF(A169>Approx!O$22,0,(B169-C169)^2) -> 1.799564196
A170: 1.428 | B170: 4.170350145 | C170: 2.803315055 | D170: =IF(A170>Approx!O$22,0,(B170-C170)^2) -> 1.868784939
A171: 1.449 | B171: 4.258853532 | C171: 2.866156302 | D171: =IF(A171>Approx!O$22,0,(B171-C171)^2) -> 1.939605573
A172: 1.47 | B172: 4.349235141 | C172: 2.930773535 | D172: =IF(A172>Approx!O$22,0,(B172-C172)^2) -> 2.012033329
A173: 1.491 | B173: 4.441534834 | C173: 2.997209718 | D173: =IF(A173>Approx!O$22,0,(B173-C173)^2) -> 2.08607504
A174: 1.512 | B174: 4.535793315 | C174: 3.065508586 | D174: =IF(A174>Approx!O$22,0,(B174-C174)^2) -> 2.161737186
A175: 1.533 | B175: 4.632052155 | C175: 3.135714648 | D175: =IF(A175>Approx!O$22,0,(B175-C175)^2) -> 2.239025937
A176: 1.554 | B176: 4.730353805 | C176: 3.207873194 | D176: =IF(A176>Approx!O$22,0,(B176-C176)^2) -> 2.317947211
A177: 1.575 | B177: 4.830741618 | C177: 3.282030305 | D177: =IF(A177>Approx!O$22,0,(B177-C177)^2) -> 2.398506731
A178: 1.596 | B178: 4.933259866 | C178: 3.358232853 | D178: =IF(A178>Approx!O$22,0,(B178-C178)^2) -> 2.480710091
A179: 1.617 | B179: 5.037953762 | C179: 3.436528514 | D179: =IF(A179>Approx!O$22,0,(B179-C179)^2) -> 2.564562824
A180: 1.638 | B180: 5.144869477 | C180: 3.516965771 | D180: =IF(A180>Approx!O$22,0,(B180-C180)^2) -> 2.650070476
A181: 1.659 | B181: 5.254054162 | C181: 3.59959392 | D181: =IF(A181>Approx!O$22,0,(B181-C181)^2) -> 2.737238695
A182: 1.68 | B182: 5.365555971 | C182: 3.684463079 | D182: =IF(A182>Approx!O$22,0,(B182-C182)^2) -> 2.826073311
A183: 1.701 | B183: 5.479424077 | C183: 3.771624195 | D183: =IF(A183>Approx!O$22,0,(B183-C183)^2) -> 2.916580436
A184: 1.722 | B184: 5.595708698 | C184: 3.861129047 | D184: =IF(A184>Approx!O$22,0,(B184-C184)^2) -> 3.008766566
A185: 1.743 | B185: 5.714461117 | C185: 3.953030254 | D185: =IF(A185>Approx!O$22,0,(B185-C185)^2) -> 3.102638686
A186: 1.764 | B186: 5.835733706 | C186: 4.047381282 | D186: =IF(A186>Approx!O$22,0,(B186-C186)^2) -> 3.198204389
A187: 1.785 | B187: 5.959579948 | C187: 4.144236454 | D187: =IF(A187>Approx!O$22,0,(B187-C187)^2) -> 3.295472
A188: 1.806 | B188: 6.086054461 | C188: 4.243650948 | D188: =IF(A188>Approx!O$22,0,(B188-C188)^2) -> 3.394450703
A189: 1.827 | B189: 6.215213023 | C189: 4.345680813 | D189: =IF(A189>Approx!O$22,0,(B189-C189)^2) -> 3.495150684
A190: 1.848 | B190: 6.347112595 | C190: 4.450382968 | D190: =IF(A190>Approx!O$22,0,(B190-C190)^2) -> 3.597583278
A191: 1.869 | B191: 6.481811346 | C191: 4.557815213 | D191: =IF(A191>Approx!O$22,0,(B191-C191)^2) -> 3.701761121
A192: 1.89 | B192: 6.619368681 | C192: 4.668036234 | D192: =IF(A192>Approx!O$22,0,(B192-C192)^2) -> 3.807698319
A193: 1.911 | B193: 6.759845265 | C193: 4.78110561 | D193: =IF(A193>Approx!O$22,0,(B193-C193)^2) -> 3.915410622
A194: 1.932 | B194: 6.90330305 | C194: 4.89708382 | D194: =IF(A194>Approx!O$22,0,(B194-C194)^2) -> 4.024915602
A195: =A194+(xMax-xMin)/200 -> 1.953 | B195: =EXP(A195) -> 7.049805304 | C195: =1+H$3*A195+H$4*A195^2+H$5*A195^3+H$6*A195^4+H$7*A195^5+H$8*A195^6 -> 5.016032246 | D195: =IF(A195>Approx!O$22,0,(B195-C195)^2) -> 4.136232852
A196: 1.974 | B196: 7.199416636 | C196: 5.138013186 | D196: =IF(A196>Approx!O$22,0,(B196-C196)^2) -> 4.249384185
A197: 1.995 | B197: 7.352203028 | C197: 5.263089854 | D197: =IF(A197>Approx!O$22,0,(B197-C197)^2) -> 4.364393852
A198: 2.016 | B198: 7.50823186 | C198: 5.391326392 | D198: =IF(A198>Approx!O$22,0,(B198-C198)^2) -> 4.481288762
A199: 2.037 | B199: 7.667571944 | C199: 5.522787871 | D199: =IF(A199>Approx!O$22,0,(B199-C199)^2) -> 4.600098722
A200: 2.058 | B200: 7.830293552 | C200: 5.657540303 | D200: =IF(A200>Approx!O$22,0,(B200-C200)^2) -> 4.720856683
... 2 more rows

Sheet Sheet4
